[Event "Late-Titled-Tuesday-Blitz-June-18-2024"]
[Site "Chess.com"]
[Date "2024.06.18"]
[Round "1"]
[White "XDPS"]
[Black "lrjchess"]
[Result "1-0"]
[WhiteElo "2892"]
[BlackElo "2487"]
[TimeControl "180+1"]
[EndTime "14:01:48 PDT"]
[Termination "XDPS won by resignation"]

1. d4 {[%clk 0:03:00.9]} 1... f6 {[%clk 0:02:59.5]} 2. Nf3 {[%clk 0:03:01.2]}
2... e6 {[%clk 0:02:54.4]} 3. e4 {[%clk 0:03:01.2]} 3... c6 {[%clk 0:02:53.2]}
4. Bd3 {[%clk 0:03:00.7]} 4... d5 {[%clk 0:02:53.2]} 5. O-O {[%clk 0:02:59.9]}
5... Bd6 {[%clk 0:02:48.8]} 6. Re1 {[%clk 0:02:59.8]} 6... Ne7 {[%clk
0:02:47.3]} 7. c4 {[%clk 0:03:00.1]} 7... dxe4 {[%clk 0:02:46.7]} 8. Bxe4 {[%clk
0:03:00.1]} 8... Nd7 {[%clk 0:02:45.9]} 9. Bc2 {[%clk 0:02:58.1]} 9... Nf8
{[%clk 0:02:45.9]} 10. Nc3 {[%clk 0:02:57.7]} 10... b6 {[%clk 0:02:42.7]} 11.
Ne4 {[%clk 0:02:53.6]} 11... Bc7 {[%clk 0:02:42.5]} 12. b4 {[%clk 0:02:51.9]}
12... Bb7 {[%clk 0:02:42.3]} 13. c5 {[%clk 0:02:51.3]} 13... Nd5 {[%clk
0:02:35.5]} 14. a3 {[%clk 0:02:48]} 14... a5 {[%clk 0:02:34.4]} 15. Bd2 {[%clk
0:02:46.8]} 15... b5 {[%clk 0:02:29.5]} 16. bxa5 {[%clk 0:02:30.2]} 16... Bxa5
{[%clk 0:02:28.4]} 17. Nd6+ {[%clk 0:02:29.2]} 1-0

[Event "Late-Titled-Tuesday-Blitz-June-18-2024"]
[Site "Chess.com"]
[Date "2024.06.18"]
[Round "1"]
[White "Connectedcloud"]
[Black "only_strong_moves"]
[Result "0-1"]
[WhiteElo "2351"]
[BlackElo "2654"]
[TimeControl "180+1"]
[EndTime "14:02:19 PDT"]
[Termination "only_strong_moves won by resignation"]

1. e4 {[%clk 0:02:58.4]} 1... e5 {[%clk 0:02:58.4]} 2. Nf3 {[%clk 0:02:57.5]}
2... Nc6 {[%clk 0:02:58.8]} 3. Bb5 {[%clk 0:02:57.5]} 3... a6 {[%clk 0:02:58]}
4. Ba4 {[%clk 0:02:57.8]} 4... Nge7 {[%clk 0:02:58.4]} 5. c3 {[%clk 0:02:57.2]}
5... Ng6 {[%clk 0:02:58.5]} 6. d4 {[%clk 0:02:56.3]} 6... exd4 {[%clk
0:02:59.4]} 7. cxd4 {[%clk 0:02:56.9]} 7... d5 {[%clk 0:03:00.1]} 8. exd5 {[%clk
0:02:52.1]} 8... Bb4+ {[%clk 0:03:00]} 9. Nc3 {[%clk 0:02:49.2]} 9... Bxc3+
{[%clk 0:03:00.5]} 10. bxc3 {[%clk 0:02:49.2]} 10... Qxd5 {[%clk 0:03:01.4]} 11.
O-O {[%clk 0:02:46.3]} 11... O-O {[%clk 0:03:00.9]} 12. Bb3 {[%clk 0:02:39.7]}
12... Qh5 {[%clk 0:02:48.3]} 13. Ba3 {[%clk 0:02:17.1]} 13... Bg4 {[%clk
0:02:47.7]} 14. Bxf8 {[%clk 0:02:15.1]} 14... Nh4 {[%clk 0:02:46.7]} 15. Bd5
{[%clk 0:02:04.3]} 15... Qxd5 {[%clk 0:02:44]} 16. c4 {[%clk 0:01:52.3]} 16...
Qh5 {[%clk 0:02:41.8]} 17. Bc5 {[%clk 0:01:49]} 17... Nxf3+ {[%clk 0:02:39.2]}
0-1

[Event "Late-Titled-Tuesday-Blitz-June-18-2024"]
[Site "Chess.com"]
[Date "2024.06.18"]
[Round "1"]
[White "HajiyevKanan"]
[Black "Boudicca64"]
[Result "1-0"]
[WhiteElo "2540"]
[BlackElo "1881"]
[TimeControl "180+1"]
[EndTime "14:02:40 PDT"]
[Termination "HajiyevKanan won by resignation"]

1. d4 {[%clk 0:03:00.9]} 1... Nf6 {[%clk 0:02:51.5]} 2. Nf3 {[%clk 0:03:00.7]}
2... g6 {[%clk 0:02:50.1]} 3. c4 {[%clk 0:03:01.3]} 3... Bg7 {[%clk 0:02:49.6]}
4. g3 {[%clk 0:03:02.1]} 4... d6 {[%clk 0:02:49]} 5. Bg2 {[%clk 0:03:03]} 5...
O-O {[%clk 0:02:48.3]} 6. O-O {[%clk 0:03:03.9]} 6... c5 {[%clk 0:02:47.7]} 7.
b3 {[%clk 0:03:04.8]} 7... Nc6 {[%clk 0:02:46.7]} 8. Bb2 {[%clk 0:03:05.1]} 8...
Qb6 {[%clk 0:02:36.4]} 9. d5 {[%clk 0:03:03.6]} 9... Na5 {[%clk 0:02:31.9]} 10.
Bc3 {[%clk 0:03:01.3]} 10... Nd7 {[%clk 0:02:21.7]} 11. Qd2 {[%clk 0:03:01.7]}
11... Bxc3 {[%clk 0:02:19.4]} 12. Nxc3 {[%clk 0:03:02.6]} 12... Qd8 {[%clk
0:02:12.6]} 13. Qh6 {[%clk 0:03:02.5]} 13... Nf6 {[%clk 0:02:09.8]} 14. Ng5
{[%clk 0:03:02.8]} 14... Bf5 {[%clk 0:01:23.2]} 15. e4 {[%clk 0:03:02.6]} 15...
Bd7 {[%clk 0:01:19.9]} 16. e5 {[%clk 0:03:02.5]} 16... dxe5 {[%clk 0:01:14.8]}
17. Nce4 {[%clk 0:03:02.9]} 1-0

[Event "Late-Titled-Tuesday-Blitz-June-18-2024"]
[Site "Chess.com"]
[Date "2024.06.18"]
[Round "1"]
[White "Bob_2004"]
[Black "duone"]
[Result "1-0"]
[WhiteElo "2757"]
[BlackElo "2430"]
[TimeControl "180+1"]
[EndTime "14:02:48 PDT"]
[Termination "Bob_2004 won by resignation"]

1. d4 {[%clk 0:03:00.9]} 1... Nf6 {[%clk 0:02:54.7]} 2. c4 {[%clk 0:03:01.2]}
2... g6 {[%clk 0:02:52.1]} 3. Nc3 {[%clk 0:03:01.1]} 3... Bg7 {[%clk 0:02:52.3]}
4. Nf3 {[%clk 0:03:01.6]} 4... O-O {[%clk 0:02:51.4]} 5. Bg5 {[%clk 0:03:02.1]}
5... c5 {[%clk 0:02:50.7]} 6. e3 {[%clk 0:03:02.1]} 6... b6 {[%clk 0:02:48.9]}
7. Be2 {[%clk 0:03:00]} 7... Bb7 {[%clk 0:02:49.4]} 8. O-O {[%clk 0:02:58.9]}
8... d5 {[%clk 0:02:46.1]} 9. dxc5 {[%clk 0:02:53.8]} 9... bxc5 {[%clk 0:02:45]}
10. cxd5 {[%clk 0:02:38.5]} 10... Nxd5 {[%clk 0:02:43]} 11. Nxd5 {[%clk
0:02:38.7]} 11... Bxd5 {[%clk 0:02:37.8]} 12. Bxe7 {[%clk 0:02:34.4]} 12... Qxe7
{[%clk 0:02:38.7]} 13. Qxd5 {[%clk 0:02:34.4]} 13... Nd7 {[%clk 0:02:29.2]} 14.
Rad1 {[%clk 0:02:34.5]} 14... Rad8 {[%clk 0:02:26.5]} 15. b3 {[%clk 0:02:32.6]}
15... Ne5 {[%clk 0:02:19.9]} 16. Qe4 {[%clk 0:02:30.1]} 16... Nxf3+ {[%clk
0:02:19.6]} 17. Bxf3 {[%clk 0:02:25]} 17... Qxe4 {[%clk 0:02:19.5]} 18. Bxe4
{[%clk 0:02:25.9]} 18... Rxd1 {[%clk 0:02:18.3]} 19. Rxd1 {[%clk 0:02:26.8]}
19... Re8 {[%clk 0:02:17.3]} 20. Bc6 {[%clk 0:02:24]} 20... Rc8 {[%clk
0:02:16.3]} 21. Bb5 {[%clk 0:02:20.8]} 21... Kf8 {[%clk 0:02:11.2]} 22. Rd7
{[%clk 0:02:18.5]} 22... Rb8 {[%clk 0:02:09.3]} 23. Bc4 {[%clk 0:02:17.4]} 23...
Rb6 {[%clk 0:02:03.3]} 24. Rxf7+ {[%clk 0:02:17]} 24... Kg8 {[%clk 0:02:03.8]}
25. Rxa7+ {[%clk 0:02:15.3]} 25... Kf8 {[%clk 0:02:03.8]} 26. Rf7+ {[%clk
0:02:14.9]} 26... Kg8 {[%clk 0:02:04.2]} 27. Rb7+ {[%clk 0:02:14.8]} 1-0

[Event "Late-Titled-Tuesday-Blitz-June-18-2024"]
[Site "Chess.com"]
[Date "2024.06.18"]
[Round "1"]
[White "campochess"]
[Black "bazar-wokzal"]
[Result "0-1"]
[WhiteElo "2196"]
[BlackElo "2590"]
[TimeControl "180+1"]
[EndTime "14:02:55 PDT"]
[Termination "bazar-wokzal won by checkmate"]

1. e4 {[%clk 0:02:59.5]} 1... Nc6 {[%clk 0:02:59.4]} 2. Nf3 {[%clk 0:02:59.3]}
2... d5 {[%clk 0:02:59.1]} 3. Nc3 {[%clk 0:02:55.5]} 3... d4 {[%clk 0:02:58.7]}
4. Ne2 {[%clk 0:02:55.3]} 4... d3 {[%clk 0:02:59]} 5. Ng3 {[%clk 0:02:53.9]}
5... dxc2 {[%clk 0:02:57.8]} 6. Qxc2 {[%clk 0:02:52.9]} 6... e5 {[%clk
0:02:49.8]} 7. Bb5 {[%clk 0:02:50.9]} 7... Bd6 {[%clk 0:02:48]} 8. Nf5 {[%clk
0:02:45.3]} 8... Bxf5 {[%clk 0:02:45.5]} 9. exf5 {[%clk 0:02:43.6]} 9... Ne7
{[%clk 0:02:46]} 10. f6 {[%clk 0:02:37.1]} 10... gxf6 {[%clk 0:02:45.3]} 11. O-O
{[%clk 0:02:35.4]} 11... a6 {[%clk 0:02:44.2]} 12. Be2 {[%clk 0:02:28]} 12...
Qd7 {[%clk 0:02:43.3]} 13. b3 {[%clk 0:02:27.4]} 13... O-O-O {[%clk 0:02:42.4]}
14. Bb2 {[%clk 0:02:27.1]} 14... Rdg8 {[%clk 0:02:41]} 15. Kh1 {[%clk
0:02:26.7]} 15... Kb8 {[%clk 0:02:35.6]} 16. Rac1 {[%clk 0:02:25.7]} 16... Qg4
{[%clk 0:02:33.6]} 17. Rg1 {[%clk 0:02:17.3]} 17... e4 {[%clk 0:02:28.7]} 18.
Nd4 {[%clk 0:02:03.6]} 18... Nxd4 {[%clk 0:02:28.2]} 19. Bxg4 {[%clk 0:02:02.4]}
19... Nxc2 {[%clk 0:02:28.2]} 20. Bh3 {[%clk 0:01:48.6]} 20... Nb4 {[%clk
0:02:19.3]} 21. Rc4 {[%clk 0:01:48.2]} 21... Nd3 {[%clk 0:02:15.7]} 22. Bxf6
{[%clk 0:01:47.1]} 22... Nxf2# {[%clk 0:02:15.4]} 0-1

[Event "Late-Titled-Tuesday-Blitz-June-18-2024"]
[Site "Chess.com"]
[Date "2024.06.18"]
[Round "1"]
[White "Chessdemon2019"]
[Black "ManMish2"]
[Result "0-1"]
[WhiteElo "2369"]
[BlackElo "2674"]
[TimeControl "180+1"]
[EndTime "14:03:25 PDT"]
[Termination "ManMish2 won by resignation"]

1. d4 {[%clk 0:03:00.5]} 1... d5 {[%clk 0:02:59.3]} 2. c4 {[%clk 0:02:58.7]}
2... e6 {[%clk 0:02:59.6]} 3. Nc3 {[%clk 0:02:57.8]} 3... Be7 {[%clk 0:02:58.9]}
4. g3 {[%clk 0:02:56.9]} 4... Nf6 {[%clk 0:02:56.3]} 5. Bg2 {[%clk 0:02:56]}
5... O-O {[%clk 0:02:55.4]} 6. Nf3 {[%clk 0:02:55.9]} 6... dxc4 {[%clk
0:02:53.2]} 7. O-O {[%clk 0:02:46.5]} 7... c5 {[%clk 0:02:51.7]} 8. Qa4 {[%clk
0:02:36.5]} 8... cxd4 {[%clk 0:02:48.1]} 9. Rd1 {[%clk 0:02:36.7]} 9... Nc6
{[%clk 0:02:38.3]} 10. Qxc4 {[%clk 0:02:36.3]} 10... e5 {[%clk 0:02:37.2]} 11.
e3 {[%clk 0:02:26.5]} 11... Bg4 {[%clk 0:01:55.2]} 12. Nxd4 {[%clk 0:01:52.6]}
12... exd4 {[%clk 0:01:42.9]} 13. Bxc6 {[%clk 0:01:48.6]} 13... Bxd1 {[%clk
0:01:38.5]} 14. Bxb7 {[%clk 0:01:44.3]} 14... dxc3 {[%clk 0:01:35.8]} 0-1

[Event "Late-Titled-Tuesday-Blitz-June-18-2024"]
[Site "Chess.com"]
[Date "2024.06.18"]
[Round "1"]
[White "simaopdias"]
[Black "IMJonathanCarlstedt"]
[Result "0-1"]
[WhiteElo "2201"]
[BlackElo "2593"]
[TimeControl "180+1"]
[EndTime "14:03:45 PDT"]
[Termination "IMJonathanCarlstedt won by resignation"]

1. e4 {[%clk 0:02:59.4]} 1... c5 {[%clk 0:02:41.8]} 2. Nf3 {[%clk 0:02:59.5]}
2... d6 {[%clk 0:02:40]} 3. d4 {[%clk 0:03:00]} 3... cxd4 {[%clk 0:02:40.4]} 4.
Nxd4 {[%clk 0:03:00.7]} 4... Nf6 {[%clk 0:02:40.9]} 5. Nc3 {[%clk 0:03:01]} 5...
g6 {[%clk 0:02:41.4]} 6. Be2 {[%clk 0:03:00.2]} 6... Bg7 {[%clk 0:02:40.9]} 7.
Be3 {[%clk 0:03:01.1]} 7... O-O {[%clk 0:02:40.6]} 8. O-O {[%clk 0:03:01.8]}
8... Nc6 {[%clk 0:02:40.9]} 9. Nb3 {[%clk 0:03:01]} 9... Bd7 {[%clk 0:02:40.8]}
10. Qd2 {[%clk 0:03:00.6]} 10... a6 {[%clk 0:02:40]} 11. a4 {[%clk 0:02:59.6]}
11... Rc8 {[%clk 0:02:37.5]} 12. a5 {[%clk 0:02:58.6]} 12... Ne5 {[%clk
0:02:36.5]} 13. Bb6 {[%clk 0:02:58.3]} 13... Qe8 {[%clk 0:02:35.7]} 14. f3
{[%clk 0:02:47.9]} 14... Be6 {[%clk 0:02:14.6]} 15. Nd4 {[%clk 0:02:38.3]} 15...
Bc4 {[%clk 0:02:12.1]} 16. Bd3 {[%clk 0:02:34.1]} 16... Nfd7 {[%clk 0:02:03.9]}
17. Ba7 {[%clk 0:02:21.6]} 17... Ra8 {[%clk 0:02:02.9]} 18. Bb6 {[%clk
0:02:21.1]} 18... Nxb6 {[%clk 0:02:01.8]} 19. axb6 {[%clk 0:02:21.3]} 19... Nxd3
{[%clk 0:02:01.4]} 20. cxd3 {[%clk 0:02:09]} 20... Bxd4+ {[%clk 0:01:59.4]} 21.
Kh1 {[%clk 0:02:09.9]} 21... Be6 {[%clk 0:01:57.1]} 22. f4 {[%clk 0:02:05.1]}
22... f5 {[%clk 0:01:47.9]} 23. Nd5 {[%clk 0:02:00.9]} 23... Bxd5 {[%clk
0:01:47.1]} 24. exd5 {[%clk 0:02:01.8]} 24... Rc8 {[%clk 0:01:45.5]} 25. Rfe1
{[%clk 0:01:55.9]} 25... Bf6 {[%clk 0:01:43.5]} 26. d4 {[%clk 0:01:53.3]} 26...
Qb5 {[%clk 0:01:42.3]} 0-1

[Event "Late-Titled-Tuesday-Blitz-June-18-2024"]
[Site "Chess.com"]
[Date "2024.06.18"]
[Round "1"]
[White "WilsonPalencia21"]
[Black "mfschulz"]
[Result "1-0"]
[WhiteElo "2586"]
[BlackElo "2186"]
[TimeControl "180+1"]
[EndTime "14:03:59 PDT"]
[Termination "WilsonPalencia21 won by resignation"]

1. d4 {[%clk 0:03:00.9]} 1... Nf6 {[%clk 0:02:58.4]} 2. c4 {[%clk 0:03:01]} 2...
c5 {[%clk 0:02:58.5]} 3. d5 {[%clk 0:03:01.5]} 3... e6 {[%clk 0:02:58.8]} 4. Nf3
{[%clk 0:03:01.1]} 4... exd5 {[%clk 0:02:58.7]} 5. cxd5 {[%clk 0:03:02]} 5... d6
{[%clk 0:02:58.9]} 6. g3 {[%clk 0:03:02.6]} 6... a6 {[%clk 0:02:59.3]} 7. a4
{[%clk 0:03:00.6]} 7... g6 {[%clk 0:02:59.4]} 8. Bg2 {[%clk 0:03:00.7]} 8... Bg7
{[%clk 0:02:59.6]} 9. O-O {[%clk 0:03:01.6]} 9... O-O {[%clk 0:02:59.7]} 10. Nc3
{[%clk 0:03:02.1]} 10... Re8 {[%clk 0:02:57.9]} 11. Nd2 {[%clk 0:03:02]} 11...
Nbd7 {[%clk 0:02:58.2]} 12. h3 {[%clk 0:02:57.6]} 12... Rb8 {[%clk 0:02:57.3]}
13. Nc4 {[%clk 0:02:57]} 13... Nb6 {[%clk 0:02:56.9]} 14. Na3 {[%clk 0:02:56.8]}
14... Bd7 {[%clk 0:02:57]} 15. e4 {[%clk 0:02:44.2]} 15... Qc8 {[%clk 0:02:52]}
16. a5 {[%clk 0:02:40.7]} 16... Na8 {[%clk 0:02:50.3]} 17. Nc4 {[%clk
0:02:40.4]} 17... Qc7 {[%clk 0:02:45.7]} 18. Bf4 {[%clk 0:02:29.4]} 18... Re5
{[%clk 0:02:27.5]} 19. Bxe5 {[%clk 0:02:27.6]} 19... dxe5 {[%clk 0:02:27.6]} 20.
d6 {[%clk 0:02:28.1]} 20... Qc8 {[%clk 0:02:26.5]} 21. Nxe5 {[%clk 0:02:26.2]}
21... Bxh3 {[%clk 0:02:24.6]} 22. d7 {[%clk 0:02:04.5]} 22... Bxd7 {[%clk
0:02:20.6]} 23. Nxd7 {[%clk 0:02:04.3]} 23... Qxd7 {[%clk 0:02:19.4]} 24. e5
{[%clk 0:02:02.1]} 24... Qxd1 {[%clk 0:02:15.6]} 25. Rfxd1 {[%clk 0:02:02]}
25... Ne8 {[%clk 0:02:09.5]} 26. f4 {[%clk 0:01:51.7]} 26... Nac7 {[%clk
0:02:03.6]} 27. Rd7 {[%clk 0:01:49.3]} 27... b5 {[%clk 0:02:01.1]} 28. Rad1
{[%clk 0:01:46.8]} 28... Ne6 {[%clk 0:01:51.1]} 29. Ne2 {[%clk 0:01:39.1]} 29...
f6 {[%clk 0:01:45]} 30. Bd5 {[%clk 0:01:38.2]} 1-0

[Event "Late-Titled-Tuesday-Blitz-June-18-2024"]
[Site "Chess.com"]
[Date "2024.06.18"]
[Round "1"]
[White "Jimonios"]
[Black "PapaieDudu"]
[Result "1-0"]
[WhiteElo "2658"]
[BlackElo "2355"]
[TimeControl "180+1"]
[EndTime "14:04:31 PDT"]
[Termination "Jimonios won by resignation"]

1. Nf3 {[%clk 0:02:59.3]} 1... d5 {[%clk 0:03:00.1]} 2. e3 {[%clk 0:02:57.6]}
2... e6 {[%clk 0:03:01]} 3. b3 {[%clk 0:02:57.8]} 3... Nf6 {[%clk 0:03:01.9]} 4.
Bb2 {[%clk 0:02:58.2]} 4... Be7 {[%clk 0:03:02.8]} 5. c4 {[%clk 0:02:58.4]} 5...
O-O {[%clk 0:03:03.7]} 6. Nc3 {[%clk 0:02:58.4]} 6... b6 {[%clk 0:03:03.5]} 7.
cxd5 {[%clk 0:02:58.1]} 7... exd5 {[%clk 0:03:03.2]} 8. d4 {[%clk 0:02:58.3]}
8... Bb7 {[%clk 0:02:54.1]} 9. Bd3 {[%clk 0:02:58.4]} 9... Ne4 {[%clk
0:02:51.6]} 10. Qc2 {[%clk 0:02:49.9]} 10... f5 {[%clk 0:02:43.4]} 11. O-O
{[%clk 0:02:49.8]} 11... Nd7 {[%clk 0:02:42.7]} 12. Ne2 {[%clk 0:02:49.6]} 12...
Ndf6 {[%clk 0:02:40]} 13. Nf4 {[%clk 0:02:47.8]} 13... Qd7 {[%clk 0:02:37.8]}
14. Ne5 {[%clk 0:02:47.8]} 14... Qd6 {[%clk 0:02:28.8]} 15. f3 {[%clk
0:02:41.6]} 15... g5 {[%clk 0:02:22.5]} 16. Ne2 {[%clk 0:02:36.4]} 16... Qb4
{[%clk 0:02:02.1]} 17. a3 {[%clk 0:02:29]} 17... Qd2 {[%clk 0:01:50.9]} 18. fxe4
{[%clk 0:02:28.2]} 18... Qxe3+ {[%clk 0:01:51.3]} 19. Kh1 {[%clk 0:02:28.1]}
19... fxe4 {[%clk 0:01:47.7]} 20. Bb5 {[%clk 0:02:25.4]} 20... Bd6 {[%clk
0:01:36.5]} 21. Bc1 {[%clk 0:02:25]} 21... Ng4 {[%clk 0:01:11.4]} 22. Rxf8+
{[%clk 0:02:21.4]} 22... Rxf8 {[%clk 0:01:10.9]} 23. Bxe3 {[%clk 0:02:22.3]}
23... Nxe3 {[%clk 0:01:10.4]} 24. Qd2 {[%clk 0:02:21.9]} 24... Nf1 {[%clk
0:00:58.9]} 25. Qxg5+ {[%clk 0:02:21.3]} 25... Kh8 {[%clk 0:00:57.8]} 26. Nf4
{[%clk 0:02:14.8]} 26... Bc8 {[%clk 0:00:57]} 27. Nfg6+ {[%clk 0:02:14.4]} 27...
hxg6 {[%clk 0:00:56.1]} 28. Qh6+ {[%clk 0:02:14.1]} 28... Kg8 {[%clk 0:00:56.1]}
29. Qxg6+ {[%clk 0:02:14.8]} 29... Kh8 {[%clk 0:00:56.6]} 30. Nf7+ {[%clk
0:02:12.3]} 30... Rxf7 {[%clk 0:00:56.9]} 31. Qxf7 {[%clk 0:02:13.2]} 31... e3
{[%clk 0:00:50.6]} 32. Bd3 {[%clk 0:02:10.4]} 32... Bf5 {[%clk 0:00:47.7]} 33.
Bxf5 {[%clk 0:02:10.1]} 33... Ng3+ {[%clk 0:00:48.3]} 34. hxg3 {[%clk
0:02:10.3]} 1-0

[Event "Late-Titled-Tuesday-Blitz-June-18-2024"]
[Site "Chess.com"]
[Date "2024.06.18"]
[Round "1"]
[White "koncheto"]
[Black "Chessbard1972"]
[Result "1-0"]
[WhiteElo "2621"]
[BlackElo "2287"]
[TimeControl "180+1"]
[EndTime "14:04:43 PDT"]
[Termination "koncheto won by resignation"]

1. e4 {[%clk 0:03:00.9]} 1... e5 {[%clk 0:02:58.9]} 2. Nf3 {[%clk 0:02:58.9]}
2... Nc6 {[%clk 0:02:55]} 3. Bc4 {[%clk 0:02:59.3]} 3... Bc5 {[%clk 0:02:54.1]}
4. c3 {[%clk 0:02:59.6]} 4... Nf6 {[%clk 0:02:53.6]} 5. d3 {[%clk 0:03:00.1]}
5... d6 {[%clk 0:02:52.2]} 6. O-O {[%clk 0:03:00]} 6... h6 {[%clk 0:02:50.5]} 7.
Nbd2 {[%clk 0:02:59.7]} 7... Bb6 {[%clk 0:02:49.9]} 8. Re1 {[%clk 0:02:59.7]}
8... O-O {[%clk 0:02:48.6]} 9. h3 {[%clk 0:02:59.7]} 9... Ne7 {[%clk 0:02:47.5]}
10. Nf1 {[%clk 0:02:59.6]} 10... Ng6 {[%clk 0:02:47.3]} 11. Ng3 {[%clk 0:03:00]}
11... c6 {[%clk 0:02:46.5]} 12. Bb3 {[%clk 0:02:59.7]} 12... Be6 {[%clk
0:02:44]} 13. Bc2 {[%clk 0:02:58.5]} 13... Qd7 {[%clk 0:02:39.1]} 14. d4 {[%clk
0:02:58.6]} 14... Qc8 {[%clk 0:02:27.4]} 15. Be3 {[%clk 0:02:56.6]} 15... Nf4
{[%clk 0:02:24]} 16. dxe5 {[%clk 0:02:32.2]} 16... dxe5 {[%clk 0:02:20.1]} 17.
Nxe5 {[%clk 0:02:30.6]} 17... Bxe3 {[%clk 0:02:17.9]} 18. Rxe3 {[%clk
0:02:31.5]} 18... Bxh3 {[%clk 0:02:06.9]} 19. gxh3 {[%clk 0:02:23.6]} 19... Qxh3
{[%clk 0:02:04.5]} 20. Qf3 {[%clk 0:02:15.2]} 20... N6h5 {[%clk 0:01:55]} 21.
Nxh5 {[%clk 0:02:05.5]} 21... Qxf3 {[%clk 0:01:53]} 22. Rxf3 {[%clk 0:01:56.3]}
22... Nxh5 {[%clk 0:01:53]} 23. Nxf7 {[%clk 0:01:41]} 23... Nf6 {[%clk
0:01:35.9]} 24. Nd6 {[%clk 0:01:34]} 24... Rad8 {[%clk 0:01:27.7]} 25. e5 {[%clk
0:01:17.9]} 25... Nd5 {[%clk 0:01:22.8]} 26. Rxf8+ {[%clk 0:01:17.3]} 26... Rxf8
{[%clk 0:01:21.4]} 27. Bb3 {[%clk 0:01:16.7]} 27... Kh7 {[%clk 0:01:14]} 28.
Bxd5 {[%clk 0:01:16.6]} 28... cxd5 {[%clk 0:01:14.2]} 29. e6 {[%clk 0:01:17.5]}
1-0

[Event "Late-Titled-Tuesday-Blitz-June-18-2024"]
[Site "Chess.com"]
[Date "2024.06.18"]
[Round "1"]
[White "kinga2008"]
[Black "LUISMIGUELOV"]
[Result "1-0"]
[WhiteElo "2581"]
[BlackElo "2181"]
[TimeControl "180+1"]
[EndTime "14:04:53 PDT"]
[Termination "kinga2008 won by checkmate"]

1. e4 {[%clk 0:03:00.9]} 1... c6 {[%clk 0:02:42.4]} 2. Nc3 {[%clk 0:02:58.2]}
2... d5 {[%clk 0:02:42.9]} 3. Nf3 {[%clk 0:02:57.7]} 3... Nf6 {[%clk 0:02:40.1]}
4. e5 {[%clk 0:02:56.1]} 4... Ne4 {[%clk 0:02:40.1]} 5. Nxe4 {[%clk 0:02:53.7]}
5... dxe4 {[%clk 0:02:40]} 6. Ng5 {[%clk 0:02:53.9]} 6... Bf5 {[%clk 0:02:38.6]}
7. e6 {[%clk 0:02:49.5]} 7... fxe6 {[%clk 0:02:22.6]} 8. Bc4 {[%clk 0:02:26.6]}
8... b5 {[%clk 0:02:12.5]} 9. Bxe6 {[%clk 0:02:18.6]} 9... Bxe6 {[%clk
0:02:11.9]} 10. Nxe6 {[%clk 0:02:14.9]} 10... Qd7 {[%clk 0:02:12.2]} 11. Qg4
{[%clk 0:02:08.2]} 11... g6 {[%clk 0:02:02.6]} 12. Qxe4 {[%clk 0:01:53.2]} 12...
Bh6 {[%clk 0:01:38.1]} 13. Qe5 {[%clk 0:01:51]} 13... Kf7 {[%clk 0:01:02.6]} 14.
Nc7 {[%clk 0:01:25.2]} 14... Rc8 {[%clk 0:00:59.4]} 15. Nxa8 {[%clk 0:01:23.3]}
15... Na6 {[%clk 0:00:59.9]} 16. d4 {[%clk 0:01:19.3]} 16... Rxa8 {[%clk
0:00:57.4]} 17. Bxh6 {[%clk 0:01:17.5]} 17... Nc7 {[%clk 0:00:52.8]} 18. Qg7+
{[%clk 0:01:11.4]} 18... Ke6 {[%clk 0:00:52.4]} 19. O-O {[%clk 0:01:11.4]} 19...
Nd5 {[%clk 0:00:50.8]} 20. Rfe1+ {[%clk 0:01:10.2]} 20... Kd6 {[%clk 0:00:50.9]}
21. Qe5# {[%clk 0:01:10.6]} 1-0

[Event "Late-Titled-Tuesday-Blitz-June-18-2024"]
[Site "Chess.com"]
[Date "2024.06.18"]
[Round "1"]
[White "SharathRk6"]
[Black "BirdMaster3000"]
[Result "0-1"]
[WhiteElo "2438"]
[BlackElo "2782"]
[TimeControl "180+1"]
[EndTime "14:04:55 PDT"]
[Termination "BirdMaster3000 won by resignation"]

1. e4 {[%clk 0:03:00.9]} 1... c5 {[%clk 0:02:58.2]} 2. Nf3 {[%clk 0:02:59.6]}
2... e6 {[%clk 0:02:58.2]} 3. d4 {[%clk 0:02:59]} 3... cxd4 {[%clk 0:02:59.1]}
4. Nxd4 {[%clk 0:02:58.1]} 4... Nc6 {[%clk 0:02:58.8]} 5. Nc3 {[%clk 0:02:58.7]}
5... Qc7 {[%clk 0:02:57.7]} 6. Be3 {[%clk 0:02:57.3]} 6... a6 {[%clk 0:02:57.2]}
7. Qf3 {[%clk 0:02:54.6]} 7... Nf6 {[%clk 0:02:56.5]} 8. O-O-O {[%clk
0:02:52.6]} 8... Ne5 {[%clk 0:02:56.7]} 9. Qg3 {[%clk 0:02:52]} 9... b5 {[%clk
0:02:57.3]} 10. f4 {[%clk 0:02:51.6]} 10... Neg4 {[%clk 0:02:57.8]} 11. Bg1
{[%clk 0:02:51.1]} 11... h5 {[%clk 0:02:54.8]} 12. e5 {[%clk 0:02:45.7]} 12...
b4 {[%clk 0:02:54.6]} 13. Na4 {[%clk 0:02:29.5]} 13... Nd5 {[%clk 0:02:54.6]}
14. h3 {[%clk 0:02:22.2]} 14... Nh6 {[%clk 0:02:54.5]} 15. b3 {[%clk 0:02:21]}
15... d6 {[%clk 0:02:44.5]} 16. exd6 {[%clk 0:02:17.5]} 16... Bxd6 {[%clk
0:02:44.4]} 17. Qxg7 {[%clk 0:01:51.4]} 17... Rg8 {[%clk 0:02:23.2]} 18. Qh7
{[%clk 0:01:47.2]} 18... Bxf4+ {[%clk 0:02:22.7]} 19. Kb1 {[%clk 0:01:44.3]}
19... e5 {[%clk 0:02:16.1]} 20. Bc4 {[%clk 0:01:37.4]} 20... exd4 {[%clk
0:02:07.1]} 21. Bxd4 {[%clk 0:01:05.4]} 21... Bf5 {[%clk 0:02:01.5]} 22. Rhe1+
{[%clk 0:01:01.1]} 22... Ne7 {[%clk 0:01:56.5]} 23. Bxf7+ {[%clk 0:00:54.2]}
23... Kf8 {[%clk 0:01:55.8]} 24. Qxf5 {[%clk 0:00:25.3]} 24... Nhxf5 {[%clk
0:01:54]} 25. Bxg8 {[%clk 0:00:25.2]} 25... Kxg8 {[%clk 0:01:53.4]} 26. Bf6
{[%clk 0:00:22.7]} 26... Rd8 {[%clk 0:01:51.6]} 27. Rxd8+ {[%clk 0:00:20.8]}
27... Qxd8 {[%clk 0:01:51.9]} 28. Nb2 {[%clk 0:00:21.5]} 0-1